bitfinex-derivatives/quotes_SOLF0:USTF0_20250823
["timestamp","ask_amount","ask_price","bid_price","bid_amount"]
[1755909489820,7.8572,199.77,199.68,2.73]
[1755909491324,7.8572,199.77,199.68,7.7391]
[1755909495129,2.85,199.77,199.66,25.0491]
[1755909495324,2.85,199.77,199.7,2.73]
[1755909496227,152.66261721,199.84,199.7,2.73]
[1755909496425,2.85,199.82,199.7,2.73]
[1755909496625,5.0065,199.8,199.7,7.7386]
[1755909496830,7.8565,199.8,199.7,7.7386]
[1755909497023,2.85,199.78,199.7,7.7386]
[1755909497224,2.85,199.78,199.7,2.73]
[1755909498527,2.85,199.78,199.66,25.0492]
[1755909498528,2.85,199.78,199.72,2.73]
[1755909498734,5.0063,199.8,199.72,2.73]
[1755909500125,7.8567,199.79,199.72,2.73]
[1755909501130,7.8567,199.79,199.69,5.009]
[1755909501131,2.85,199.78,199.69,7.739]
[1755909501329,2.85,199.79,199.69,7.739]
[1755909501924,2.85,199.75,199.69,2.73]
[1755909502130,2.85,199.75,199.63,2.73]
[1755909502331,2.85,199.75,199.64,9.5991239]
[1755909502527,2.85,199.73,199.63,2.73]
[1755909502726,2.85,199.73,199.58,2.20819658]
[1755909502927,2.85,199.73,199.59,12.3305302]
[1755909503129,2.85,199.69,199.61,5.0109]
[1755909503936,2.85,199.69,199.61,7.7409]
[1755909504230,2.85,199.69,199.62,5.0106]
[1755909504733,2.85,199.74,199.62,2.73]
[1755909504937,2.85,199.74,199.63,9.60666745]
[1755909505231,2.85,199.74,199.68,7.7391]
[1755909507128,13.31554375,199.77,199.68,7.7391]
[1755909507833,2.85,199.75,199.71,0.03779465]
[1755909508028,2.85,199.73,199.71,0.03779465]
[1755909509023,0.03159208,199.74,199.71,0.03779465]
[1755909509326,0.03159208,199.74,199.71,2.76779465]
[1755909509724,2.88159208,199.74,199.71,0.03779465]
[1755909509925,2.85,199.72,199.71,0.03779465]
[1755909510130,0.03159208,199.74,199.72,2.73]
[1755909510624,0.03159208,199.74,199.73,2.73]
[1755909511528,0.03159208,199.74,199.71,0.03779465]
[1755909512236,0.03159208,199.74,199.71,2.76779465]
[1755909513429,2.65,199.73,199.71,0.03779465]
[1755909513635,2.65,199.72,199.71,0.03779465]
[1755909513836,2.68159208,199.74,199.71,0.03779465]
[1755909514232,10.99003583,199.74,199.71,0.03779465]
[1755909515538,0.03159208,199.74,199.71,2.70779465]
[1755909517535,0.03159208,199.74,199.72,2.67]
[1755909519538,0.03159208,199.74,199.73,2.67]
[1755909522842,0.03159208,199.74,199.71,0.03779465]
[1755909523038,10.99003583,199.74,199.71,0.03779465]
[1755909523239,2.65,199.73,199.71,0.03779465]
[1755909527138,2.65,199.72,199.71,0.03779465]
[1755909540452,0.03159208,199.74,199.71,9.69223437]
[1755909540652,0.03159208,199.74,199.72,2.67]
[1755909540852,2.68159208,199.74,199.71,0.03779465]
[1755909541053,2.68159208,199.74,199.71,2.70779465]
[1755909541249,2.68159208,199.74,199.72,4.96632265]
[1755909541551,2.68159208,199.74,199.73,4.96632265]
[1755909541951,2.68159208,199.74,199.71,2.70779465]
[1755909542152,2.68159208,199.74,199.72,4.96623854]
[1755909542354,2.68159208,199.74,199.73,4.96623854]
[1755909542553,2.68159208,199.74,199.73,4.96616607]
[1755909542955,0.03159208,199.74,199.71,0.03779465]
[1755909543251,2.92,199.73,199.71,0.03779465]
[1755909543854,2.92,199.72,199.71,0.03779465]
[1755909544052,16.8388285,199.72,199.58,5.04819658]
[1755909544247,2.92,199.71,199.59,9.89531076]
[1755909544451,2.92,199.71,199.6,4.96675689]
[1755909544648,2.92,199.71,199.61,4.96675689]
[1755909544852,2.92,199.71,199.62,4.96675689]
[1755909545053,2.92,199.71,199.58,5.04819658]
[1755909545257,0.03214655,199.66,199.59,9.89267278]
[1755909545459,0.03214655,199.66,199.6,4.9654332]
[1755909545758,2.92,199.65,199.58,2.84]
[1755909545958,2.92,199.65,199.59,4.96566948]
[1755909546148,2.92,199.65,199.6,0.03259026]
[1755909546454,2.92,199.62,199.6,0.03259026]
[1755909546754,2.92,199.61,199.6,0.03259026]
[1755909552254,2.92,199.59,199.51,2.84]
[1755909552654,2.92,199.56,199.51,2.84]
[1755909552852,2.92,199.56,199.46,2.84]
[1755909553051,2.92,199.56,199.39,10.90531003]
[1755909553052,2.92,199.56,199.42,2.84]
[1755909553252,2.92,199.5,199.43,4.93788428]
[1755909553557,2.92,199.5,199.42,2.84]
[1755909553758,2.92,199.5,199.43,4.99157984]
[1755909553958,2.92,199.5,199.42,2.84]
[1755909554161,2.92,199.47,199.43,7.83155923]
[1755909554364,0.03760775,199.48,199.46,2.84]
[1755909554664,0.03760775,199.48,199.47,2.84]
[1755909554867,2.92,199.53,199.47,2.84]
[1755909555165,0.03803435,199.49,199.47,2.84]
[1755909555764,2.95803435,199.49,199.43,2.84]
[1755909555963,2.95803435,199.49,199.41,5.016]
[1755909556164,2.92,199.49,199.42,4.9812144]
[1755909556355,2.92,199.49,199.4,2.84]
[1755909556556,0.03550765,199.47,199.41,4.97652832]
[1755909556761,0.03550765,199.47,199.36,361.9067]
[1755909556762,0.03550765,199.47,199.42,7.81652832]
[1755909556963,2.92,199.46,199.42,2.84]
[1755909561071,2.92,199.46,199.39,5.0164]
[1755909561271,2.92,199.46,199.43,2.84]
[1755909562578,2.95550765,199.47,199.39,7.8564]
[1755909562779,2.95550765,199.47,199.4,4.95578507]
[1755909562977,2.95550765,199.47,199.41,4.95578507]
[1755909563179,2.95550765,199.47,199.39,7.8564]
[1755909563374,2.95550765,199.47,199.4,4.95398374]
[1755909563680,2.95550765,199.47,199.41,4.95398374]
[1755909563877,2.95550765,199.47,199.4,5.0161]
[1755909564180,2.95550765,199.47,199.41,7.79393885]
[1755909564375,2.95550765,199.47,199.43,2.84]
[1755909569081,2.20819658,199.45,199.33,2.84]
[1755909569278,148.8148,199.46,199.34,1.94396338]
[1755909569279,123.24,199.46,199.34,1.94396338]
[1755909569582,5.0158,199.42,199.35,2.84]
[1755909569778,5.04750218,199.42,199.35,2.84]
[1755909569984,0.03170218,199.42,199.35,2.84]
[1755909570684,5.04770218,199.42,199.35,2.84]
[1755909575287,0.03170218,199.42,199.35,2.84]
[1755909575881,0.03170218,199.42,199.36,5.0171]
[1755909577581,0.03170218,199.42,199.32,25.0919]
[1755909577582,0.03170218,199.42,199.37,5.0169]
[1755909577784,0.03170218,199.42,199.34,2.74]
[1755909578189,0.03170218,199.42,199.39,5.0164]
[1755909578488,0.03170218,199.42,199.41,2.74]
[1755909579483,0.03170218,199.42,199.34,25.0891]
[1755909579690,0.03170218,199.42,199.4,2.74]
[1755909580292,0.03170218,199.42,199.41,2.74]
[1755909581287,0.03170218,199.42,199.41,7.65844704]
[1755909585188,0.03170218,199.42,199.41,4.91844704]
[1755909585393,2.81170218,199.42,199.41,4.91844704]
[1755909585696,2.81170218,199.42,199.31,2.20819658]
[1755909585697,2.78,199.41,199.35,2.74]
[1755909585995,2.78,199.41,199.37,2.74]
[1755909586197,2.78,199.41,199.38,4.8594169]
[1755909586392,2.78,199.41,199.39,4.8594169]
[1755909586593,2.78,199.41,199.37,2.74]
[1755909586798,2.81674837,199.41,199.38,4.85968266]
[1755909587196,2.81674837,199.41,199.39,4.8660203]
[1755909587392,2.81674837,199.41,199.4,4.8660203]
[1755909587800,2.81674837,199.41,199.37,2.74]
[1755909587998,2.81674837,199.41,199.38,4.86670834]
[1755909588199,2.78,199.4,199.39,4.87245587]
[1755909588495,2.78,199.4,199.37,2.74]
[1755909588699,2.78,199.4,199.38,4.87250136]
[1755909588900,2.78,199.4,199.37,2.74]
[1755909589098,2.78,199.4,199.38,4.87250136]
[1755909589293,2.78,199.4,199.39,4.87250136]
[1755909590895,0.03674837,199.41,199.39,4.87250136]
[1755909591092,2.81674837,199.41,199.4,4.87250136]
[1755909594101,5.0166,199.39,199.33,2.74]
[1755909594299,5.0166,199.39,199.35,2.74]
[1755909594300,7.7966,199.39,199.35,2.74]
[1755909594500,7.7966,199.39,199.36,4.8928725]
[1755909594702,7.7966,199.39,199.37,4.8928725]
[1755909594905,7.7966,199.39,199.38,4.8928725]
[1755909595093,7.82989882,199.39,199.38,4.8928725]
[1755909595698,7.82989882,199.39,199.33,2.74]
[1755909595894,7.82989882,199.39,199.35,2.74]
[1755909596098,7.82989882,199.39,199.36,4.73597425]
[1755909596399,7.82989882,199.39,199.35,2.74]
[1755909596596,7.82989882,199.39,199.36,4.73922417]
[1755909596796,7.82989882,199.39,199.35,2.74]
[1755909596998,0.03329882,199.39,199.37,2.74]
[1755909597302,0.03329882,199.39,199.38,7.47926991]
[1755909597502,2.78,199.43,199.39,2.74]
[1755909597702,2.78,199.43,199.36,5.0172]
[1755909597903,2.78,199.43,199.4,2.74]
[1755909598204,0.0325604,199.41,199.4,2.74]
[1755909599201,0.0325604,199.41,199.4,7.48391017]
[1755909600203,445.45395411,199.5,199.41,2.74]
[1755909600499,2.78,199.49,199.43,2.74]
[1755909600705,2.78,199.48,199.4,2.74]
[1755909600899,2.78,199.48,199.41,4.74509738]
[1755909601096,2.78,199.48,199.4,2.74]
[1755909601097,7.7945,199.48,199.42,4.74509738]
[1755909601299,2.78,199.48,199.42,2.74]
[1755909601495,0.03747923,199.47,199.38,7.7566]
[1755909601698,2.81747923,199.47,199.39,4.74541532]
[1755909602001,2.78,199.47,199.4,4.74541532]
[1755909602302,0.0324559,199.45,199.41,4.74541532]
[1755909602499,0.0324559,199.45,199.39,7.7564]
[1755909602696,0.0324559,199.45,199.4,4.74581033]
[1755909602897,0.0324559,199.45,199.41,4.74581033]
[1755909603098,0.0324559,199.45,199.44,2.74]
[1755909604005,0.0324559,199.45,199.41,5.0158]
[1755909604399,0.0324559,199.45,199.43,2.76]
[1755909607005,0.0324559,199.45,199.41,5.0158]
[1755909607206,0.0324559,199.45,199.42,2.76]
[1755909607705,0.0324559,199.45,199.44,2.76]
[1755909608802,0.0324559,199.45,199.44,7.74354792]
[1755909609908,0.0324559,199.45,199.37,2.20819658]
[1755909610108,0.0324559,199.45,199.42,2.76]
[1755909610703,2.7924559,199.45,199.39,2.76]
[1755909611004,2.7924559,199.45,199.4,7.74412773]
[1755909611206,2.7924559,199.45,199.4,2.76]
[1755909611504,11.08163622,199.44,199.36,7.7773]
[1755909611709,134.82163622,199.44,199.37,4.98504589]
[1755909612008,2.76,199.42,199.36,2.76]
[1755909612205,11.11832387,199.42,199.36,2.76]
[1755909612407,11.11832387,199.42,199.32,2.76]
[1755909612610,5.0168,199.39,199.33,4.98556856]
[1755909612805,5.0168,199.39,199.34,4.98556856]
[1755909612806,7.7768,199.39,199.34,4.98556856]
[1755909613006,7.7768,199.39,199.34,2.76]
[1755909613207,0.03406569,199.38,199.35,4.98632107]
[1755909613412,0.03406569,199.38,199.34,2.76]
[1755909613601,0.03406569,199.38,199.35,4.98579955]
[1755909613807,0.03406569,199.38,199.34,2.76]
[1755909614004,0.03406569,199.38,199.35,4.97933256]
[1755909614211,0.03406569,199.38,199.34,2.76]
[1755909614408,0.03406569,199.38,199.35,4.97863387]
[1755909614608,0.03406569,199.38,199.36,7.73863387]
[1755909614913,0.03406569,199.38,199.36,2.76]
[1755909615313,0.03406569,199.38,199.32,2.76]
[1755909615512,0.03406569,199.38,199.34,2.76]
[1755909615712,0.03406569,199.38,199.35,7.73812536]
[1755909615908,0.03406569,199.38,199.35,2.76]
[1755909616413,2.76,199.35,199.23,2.76]
[1755909616604,8.32059989,199.32,199.25,2.76]
[1755909616809,5.0186,199.31,199.26,4.98035504]
[1755909617007,5.0186,199.31,199.27,4.98035504]
[1755909617211,2.76,199.29,199.25,2.76]
[1755909617413,7.7791,199.29,199.25,2.76]
[1755909618112,5.0196,199.27,199.19,2.76]
[1755909618316,5.0196,199.27,199.2,9.83377088]
[1755909618516,5.0196,199.27,199.21,4.9713416]
[1755909618719,5.0196,199.27,199.23,2.76]
[1755909618919,0.03537676,199.25,199.24,4.9713416]
[1755909619319,0.03537676,199.25,199.24,2.76]
[1755909619817,0.03537676,199.25,199.24,7.72707473]
[1755909622221,0.03537676,199.25,199.24,7.7803]
[1755909622422,0.03537676,199.25,199.24,12.74164044]
[1755909622820,8.32059989,199.39,199.24,9.98034613]
[1755909623020,8.32059989,199.39,199.29,2.76]
[1755909623322,125.36,199.39,199.3,4.96004613]
[1755909623513,125.36,199.39,199.31,4.96004613]
[1755909623719,125.36,199.39,199.29,2.76]
[1755909623918,2.76,199.36,199.3,4.95871407]
[1755909624116,2.76,199.36,199.29,2.76]
[1755909624319,2.76,199.36,199.25,2.76]
[1755909624520,125.46,199.35,199.26,4.95876193]
[1755909624724,125.46,199.35,199.27,4.95876193]
[1755909624918,125.46,199.35,199.28,4.95876193]
[1755909625123,125.46,199.35,199.25,2.76]
[1755909625323,125.46,199.35,199.26,4.95800132]
[1755909625524,130.4776,199.35,199.27,4.95800132]
[1755909625724,130.4776,199.35,199.28,4.95800132]
[1755909625928,130.4776,199.35,199.25,2.76]
[1755909626225,2.76,199.34,199.26,4.95804569]
[1755909626426,11.08059989,199.4,199.28,2.76]
[1755909626630,125.4,199.39,199.3,2.76]
[1755909626926,125.7,199.43,199.33,5.018]
[1755909627126,2.76,199.44,199.35,2.76]
[1755909627329,2.76,199.44,199.36,4.95804569]
[1755909627528,2.76,199.44,199.35,2.76]
[1755909627928,2.76,199.41,199.35,2.76]
[1755909628828,128.64,199.41,199.35,2.76]
[1755909629223,128.64,199.41,199.31,2.76]
[1755909629530,128.64,199.41,199.32,4.95749495]
[1755909629724,128.64,199.41,199.33,4.95749495]
[1755909629928,128.64,199.41,199.34,4.95749495]
[1755909630124,128.64,199.41,199.31,2.76]
[1755909630331,128.64,199.41,199.32,4.95839355]
[1755909630632,2.76,199.41,199.33,7.71839355]
[1755909630924,128.74,199.41,199.34,4.95839355]
[1755909631429,128.74,199.41,199.33,2.76]
[1755909631631,133.7561,199.41,199.34,4.9582023]
[1755909631833,133.7561,199.41,199.33,2.76]
[1755909633926,5.0166,199.4,199.33,2.76]
[1755909634131,2.89,199.39,199.29,2.65]
[1755909634333,128.69,199.39,199.29,2.65]
[1755909635134,2.89,199.39,199.29,2.65]
[1755909635330,128.67,199.39,199.29,7.6689]
[1755909635738,2.89,199.37,199.18,25.1089]
[1755909636035,2.89,199.37,199.23,2.65]
[1755909636234,5.0186,199.32,199.23,2.65]
[1755909636438,2.89,199.35,199.23,2.65]
[1755909636636,125.7,199.34,199.26,2.65]
[1755909637035,128.57,199.35,199.26,2.65]
[1755909637235,128.57,199.35,199.26,7.6696]
[1755909638538,133.5878,199.35,199.26,7.6696]
[1755909639132,7.9078,199.35,199.26,7.6696]
[1755909640734,5.0178,199.35,199.26,7.6696]
[1755909640940,128.53,199.34,199.26,2.65]
[1755909641140,2.89,199.34,199.26,2.65]
[1755909641340,125.6,199.35,199.26,2.65]
[1755909642136,8.32059989,199.36,199.28,2.65]
[1755909642331,2.89,199.37,199.28,2.65]
[1755909643139,125.6,199.4,199.28,2.65]
[1755909643140,125.66,199.4,199.28,2.65]
[1755909643540,130.6763,199.4,199.31,5.0186]
[1755909643741,130.6763,199.4,199.31,7.6686]
[1755909646646,125.66,199.4,199.31,2.65]
[1755909646845,2.89,199.39,199.31,2.65]
[1755909647544,5.0171,199.38,199.31,2.65]
[1755909648845,2.89,199.35,199.27,2.65]
[1755909649842,2.89,199.35,199.28,4.9279202]
[1755909650045,2.89,199.35,199.27,2.65]
[1755909650245,2.89,199.35,199.28,4.92776808]
[1755909650544,2.89,199.35,199.27,2.65]
[1755909650745,2.89,199.35,199.28,4.92938745]
[1755909650945,2.89,199.35,199.27,2.65]
[1755909651144,2.89,199.35,199.28,4.9292365]
[1755909651338,2.89,199.35,199.27,2.65]
[1755909651545,7.9078,199.35,199.28,4.93071992]
[1755909651743,7.9078,199.35,199.27,7.6694]
[1755909651940,7.9078,199.35,199.28,4.93071992]
[1755909652143,7.9078,199.35,199.27,2.65]
[1755909652346,7.9078,199.35,199.28,4.93264337]
[1755909652548,7.9078,199.35,199.27,2.65]
[1755909652849,2.89,199.29,199.22,2.65]
[1755909653049,2.89,199.33,199.24,2.65]
[1755909653343,5.0184,199.32,199.25,4.93615581]
[1755909653554,5.0184,199.32,199.24,2.65]
[1755909653850,5.0184,199.32,199.25,4.93616044]
[1755909654046,5.0184,199.32,199.24,2.65]
[1755909654353,5.0184,199.32,199.25,4.93970302]
[1755909654547,2.89,199.33,199.24,7.6702]
[1755909654846,2.89,199.33,199.25,4.93955081]
[1755909655046,7.9083,199.33,199.24,7.6702]
[1755909655247,7.9083,199.33,199.25,4.94206811]
[1755909655447,7.9083,199.33,199.24,7.6702]
[1755909655448,7.9083,199.33,199.26,4.94206811]
[1755909655648,2.89,199.33,199.24,7.6702]
[1755909655849,2.89,199.33,199.19,2.65]
[1755909655850,2.89,199.27,199.19,2.65]
[1755909656051,2.89,199.27,199.2,9.94116909]
[1755909656249,2.89,199.27,199.21,9.94116909]
[1755909656447,2.89,199.27,199.22,4.94238803]
[1755909656652,2.89,199.27,199.23,4.94238803]
[1755909656951,16.22939989,199.31,199.24,2.65]
[1755909657154,7.9088,199.31,199.25,4.94355808]
[1755909657353,7.9088,199.31,199.24,2.65]
[1755909657559,7.9088,199.31,199.25,4.94375551]
[1755909657756,2.89,199.31,199.24,2.65]
[1755909657954,2.89,199.31,199.25,4.94345266]
[1755909658150,2.89,199.31,199.24,2.65]
[1755909658348,2.89,199.31,199.25,4.94345069]
[1755909658549,2.89,199.31,199.26,7.59345069]
[1755909658754,2.89,199.31,199.26,2.65]
[1755909660353,8.32059989,199.34,199.28,2.65]
[1755909660558,11.21059989,199.36,199.29,4.94385779]
[1755909660757,8.32059989,199.35,199.28,2.65]
[1755909661648,5.0178,199.34,199.28,2.65]
[1755909661848,5.0178,199.34,199.29,4.94392389]
[1755909662158,2.89,199.33,199.29,2.65]
[1755909662658,2.89,199.33,199.3,2.65]
[1755909662853,8.32059989,199.36,199.3,2.65]
[1755909664450,350.69709989,199.4,199.32,2.83]
[1755909664647,350.69709989,199.4,199.33,4.94551048]
[1755909664853,350.69709989,199.4,199.34,4.94551048]
[1755909665050,13.33709989,199.4,199.32,2.83]
[1755909665256,13.33709989,199.4,199.33,4.9451662]
[1755909665455,13.33709989,199.4,199.34,4.9451662]
[1755909665655,13.33709989,199.4,199.32,2.83]
[1755909665958,13.33709989,199.4,199.33,4.94516474]
[1755909666259,2.7,199.37,199.28,2.83]
[1755909666451,8.35291292,199.38,199.35,0.03658465]
[1755909666655,8.32059989,199.36,199.35,0.03658465]
[1755909666960,2.7,199.36,199.28,2.83]
[1755909667161,2.7,199.36,199.29,4.94620172]
[1755909667460,2.7,199.35,199.24,2.83]
[1755909667650,25.0855,199.37,199.25,9.95090051]
[1755909667651,2.7,199.33,199.25,9.95090051]
[1755909667855,2.7,199.33,199.26,4.94720563]
[1755909668055,2.7,199.33,199.27,4.94720563]
[1755909668360,2.7,199.33,199.29,2.83]
[1755909669162,2.7,199.34,199.25,5.03819658]
[1755909669362,2.7,199.34,199.26,9.94968224]
[1755909669563,5.0183,199.33,199.27,4.94640572]
[1755909669759,2.7,199.32,199.28,4.94640572]
[1755909669955,2.7,199.32,199.25,2.83]
[1755909670265,2.7,199.32,199.26,9.95006098]
[1755909670461,2.7,199.31,199.27,4.94678446]
[1755909670762,2.7,199.31,199.28,4.94678446]
[1755909670962,2.7,199.31,199.25,2.83]
[1755909671260,2.7,199.31,199.26,12.68992438]
[1755909671458,2.7,199.31,199.27,4.94662197]
[1755909671659,2.7,199.31,199.28,4.94662197]
[1755909671851,2.7,199.31,199.26,2.83]
[1755909672052,2.7,199.31,199.27,4.94665216]
[1755909672253,2.7,199.31,199.28,4.94665216]
[1755909672455,2.7,199.31,199.29,4.94665216]
[1755909672663,2.7,199.31,199.27,2.83]
[1755909672962,2.7,199.31,199.28,4.94797429]
[1755909673165,2.7,199.31,199.29,4.94797429]
[1755909673463,2.7,199.31,199.27,2.83]
[1755909673762,2.7,199.31,199.28,4.9486108]
[1755909673953,2.7,199.31,199.27,2.83]
[1755909674157,2.7,199.31,199.28,4.90371797]
[1755909674360,2.7,199.31,199.27,2.83]
[1755909674559,2.7,199.31,199.28,4.90429581]
[1755909674759,5.0185,199.32,199.22,7.22879658]
[1755909674962,2.7,199.3,199.23,12.65013759]
[1755909675162,2.7,199.3,199.24,9.82013759]
[1755909675362,7.7188,199.3,199.25,9.82104951]
[1755909675557,2.7,199.3,199.26,7.73475463]
[1755909675753,2.7,199.3,199.27,4.90475463]
[1755909675957,2.7,199.3,199.26,2.83]
[1755909676153,2.7,199.3,199.27,4.90475254]
[1755909676363,2.7,199.3,199.28,4.90524633]
[1755909676662,2.7,199.3,199.26,2.83]
[1755909676863,2.7,199.3,199.27,4.90524633]
[1755909677061,2.7,199.3,199.28,4.90524633]
[1755909677262,2.7,199.3,199.26,2.83]
[1755909677458,2.7,199.3,199.27,4.90565832]
[1755909677664,2.7,199.3,199.28,4.90565832]
[1755909677863,5.0183,199.32,199.27,2.83]
[1755909678063,7.7183,199.32,199.28,4.90565832]
[1755909678265,2.7,199.31,199.27,2.83]
[1755909678454,2.7,199.31,199.28,4.90617024]
[1755909678656,2.7,199.31,199.27,2.83]
[1755909678858,2.7,199.31,199.28,4.90604904]
[1755909679058,13.33839989,199.34,199.29,7.73597392]
[1755909679367,7.7178,199.34,199.29,2.83]
[1755909679659,2.7,199.33,199.29,2.83]
[1755909680561,134.18059989,199.35,199.23,25.1031]
[1755909680768,8.32059989,199.35,199.26,2.83]
[1755909681064,8.32059989,199.35,199.28,2.83]
[1755909681264,8.32059989,199.35,199.29,4.90676932]
[1755909681455,8.32059989,199.35,199.3,4.90676932]
[1755909681765,2.7,199.34,199.28,7.8493]
[1755909681961,2.7,199.34,199.3,2.83]
[1755909682668,8.32059989,199.33,199.3,2.83]
[1755909683461,8.32059989,199.33,199.29,2.83]
[1755909683765,8.32059989,199.33,199.3,2.83]
[1755909684162,11.02059989,199.33,199.3,2.83]
[1755909684360,11.02059989,199.33,199.26,5.0197]
[1755909684667,11.02059989,199.33,199.27,7.73654878]
[1755909684863,11.02059989,199.33,199.28,7.73654878]
[1755909685064,11.02059989,199.33,199.28,2.83]
[1755909685365,11.02059989,199.33,199.29,2.83]
[1755909687366,11.02059989,199.33,199.3,2.83]
[1755909691070,11.02059989,199.33,199.26,5.0197]
[1755909691271,2.7,199.32,199.28,2.83]
[1755909691570,2.7,199.32,199.29,2.83]
[1755909693168,2.7,199.32,199.3,4.91003743]
[1755909693568,2.7,199.32,199.29,2.83]
[1755909693865,8.32059989,199.34,199.3,4.91023731]
[1755909694070,2.84,199.33,199.25,2.84]
[1755909694268,2.84,199.33,199.26,9.83295347]
[1755909694470,2.84,199.33,199.27,4.91068385]
[1755909694667,2.84,199.31,199.28,4.91068385]
[1755909694872,2.84,199.3,199.29,4.91068385]
[1755909695073,11.16059989,199.33,199.29,4.91068385]
[1755909695278,11.16059989,199.33,199.25,2.84]
[1755909695469,11.16059989,199.33,199.26,9.83357247]
[1755909695670,16.17879989,199.33,199.27,4.91099507]
[1755909695871,13.33879989,199.33,199.28,4.91099507]
[1755909696070,2.84,199.31,199.29,4.91084468]
[1755909696271,2.84,199.31,199.25,2.84]
[1755909696470,2.84,199.31,199.26,9.83376223]
[1755909696771,2.84,199.31,199.27,12.67376223]
[1755909696965,2.84,199.31,199.28,4.91108304]
[1755909697165,2.84,199.3,199.29,4.91108304]
[1755909700380,3.34,199.3,199.19,2.84]
[1755909700578,124.94,199.29,199.2,6.92425165]
[1755909700778,2.84,199.28,199.21,6.92425165]
[1755909700978,2.84,199.28,199.22,4.92437065]
[1755909701176,124.94,199.29,199.23,4.92437065]
[1755909701371,7.86,199.26,199.19,7.8614]
[1755909701576,7.86,199.26,199.2,6.84637886]
[1755909701777,7.86,199.26,199.22,2.84]
[1755909701978,7.86,199.26,199.23,4.84644868]
[1755909702179,7.86,199.26,199.22,2.84]
[1755909702180,2.84,199.26,199.22,2.84]
[1755909702480,5.0194,199.28,199.23,4.84556015]
[1755909702680,2.84,199.28,199.24,4.84524392]
[1755909702979,124.92,199.31,199.21,5.0209]
[1755909703180,2.84,199.27,199.23,2.84]
[1755909703382,2.84,199.27,199.24,7.68468553]
[1755909703680,2.84,199.27,199.25,4.84468553]
[1755909703875,5.0189,199.3,199.23,2.84]
[1755909704082,5.0189,199.3,199.24,4.84461916]
[1755909704276,7.8589,199.3,199.26,2.84]
[1755909704483,7.8593,199.29,199.22,2.84]
[1755909704682,2.84,199.29,199.23,6.84315001]
[1755909704982,25.092,199.32,199.24,4.84420541]
[1755909705177,2.84,199.27,199.25,4.84420541]
[1755909705376,2.84,199.27,199.23,2.84]
[1755909705577,2.84,199.27,199.24,4.8439887]
[1755909705779,2.84,199.27,199.25,4.8439887]
[1755909705980,2.84,199.31,199.26,4.84378314]
[1755909706280,127.74,199.32,199.25,2.84]
[1755909706485,2.84,199.32,199.26,4.84338186]
[1755909706681,2.84,199.32,199.25,2.84]
[1755909706877,2.84,199.32,199.26,4.84338186]
[1755909707184,5.0192,199.29,199.25,2.84]
[1755909707383,2.84,199.28,199.25,2.84]
[1755909707683,2.84,199.28,199.22,7.8606]
[1755909707879,2.84,199.27,199.23,9.68195537]
[1755909708183,2.84,199.27,199.24,7.68336498]
[1755909708383,2.84,199.27,199.25,4.84336498]
[1755909708683,2.84,199.28,199.2,2.84]
[1755909708886,2.84,199.28,199.21,6.84142755]
[1755909709185,7.8597,199.27,199.23,2.84]
[1755909709380,7.8597,199.27,199.24,4.84296641]
[1755909709681,7.8597,199.27,199.25,4.84296641]
[1755909709873,7.8597,199.27,199.23,2.84]
[1755909710072,7.8597,199.27,199.24,4.84258648]